[Event "6. Internationales Spandauer Weihnachtsopen 2023"]
[Site "Spandau, Germany"]
[Date "2023.12.27"]
[Round "2.1"]
[White "Dahl, Christoph"]
[Black "Huth, Kevin"]
[Result "1-0"]
[TimeControl "90 min+30 sec"]
[WhiteElo "2357"]
[BlackElo "1969"]

1. e4 {[%clk 01:30:56]} c5 {[%clk 01:30:53]} {[%emt 00:00:37]} 2. Nf3 {[%clk
01:31:09]} d6 {[%clk 01:31:03]} 3. d4 {[%clk 01:31:16]} {[%emt 00:00:12]} cxd4
{[%clk 01:30:48]} {[%emt 00:01:06]} 4. Nxd4 {[%clk 01:31:39]} Nf6 {[%clk
01:30:51]} {[%emt 00:00:15]} 5. Nc3 {[%clk 01:31:40]} {[%emt 00:00:27]} a6
{[%clk 01:30:12]} {[%emt 00:01:14]} 6. Bg5 {[%clk 01:31:18]} {[%emt 00:01:39]}
e6 {[%clk 01:30:28]} 7. f4 {[%clk 01:30:51]} {[%emt 00:00:35]} Be7 {[%clk
01:30:23]} {[%emt 00:00:37]} 8. Qf3 {[%clk 01:30:11]} {[%emt 00:01:12]} Qc7
{[%clk 01:28:43]} {[%emt 00:01:55]} 9. O-O-O {[%clk 01:29:53]} {[%emt
00:00:42]} Nbd7 {[%clk 01:28:59]} {[%emt 00:00:15]} 10. g4 {[%clk 01:29:14]}
{[%emt 00:01:07]} b5 {[%clk 01:28:29]} {[%emt 00:01:56]} 11. Bxf6 {[%clk
01:29:24]} Nxf6 {[%clk 01:28:08]} {[%emt 00:00:17]} 12. g5 {[%clk 01:29:01]}
{[%emt 00:00:59]} Nd7 {[%clk 01:27:54]} {[%emt 00:02:48]} 13. f5 {[%clk
01:28:21]} Ne5 {[%clk 01:14:10]} {[%emt 00:13:12]} 14. Qg3 {[%clk 01:17:55]}
{[%emt 00:11:04]} b4 {[%clk 01:12:06]} {[%emt 00:02:28]} 15. Nce2 {[%clk
01:17:23]} {[%emt 00:01:04]} exf5 {[%clk 00:55:33]} {[%emt 00:17:05]} 16. exf5
{[%clk 01:13:28]} {[%emt 00:04:28]} Bb7 {[%clk 00:52:06]} {[%emt 00:03:47]} 17.
Bg2 {[%clk 01:13:45]} {[%emt 00:00:27]} Rc8 {[%clk 00:43:33]} {[%emt 00:08:54]}
18. Nf4 {[%clk 01:10:44]} {[%emt 00:03:28]} d5 {[%clk 00:39:28]} {[%emt
00:04:48]} 19. Bxd5 {[%clk 01:04:19]} {[%emt 00:06:42]} O-O {[%clk 00:21:36]}
{[%emt 00:18:40]} 20. f6 {[%clk 00:39:29]} {[%emt 00:25:11]} Bd6 {[%clk
00:10:20]} {[%emt 00:11:53]} 21. Bxb7 {[%clk 00:39:13]} {[%emt 00:00:37]} Ng6
{[%clk 00:08:45]} {[%emt 00:02:03]} 22. Nxg6 {[%clk 00:29:37]} {[%emt
00:10:08]} Bxg3 {[%clk 00:07:11]} {[%emt 00:01:59]} 23. Ne7+ {[%clk 00:30:01]}
{[%emt 00:00:05]} Kh8 {[%clk 00:07:16]} {[%emt 00:00:33]} 24. hxg3 {[%clk
00:26:29]} {[%emt 00:03:50]} Qxb7 {[%clk 00:05:55]} {[%emt 00:01:51]} 25. Rh4
{[%clk 00:21:14]} {[%emt 00:05:53]} gxf6 {[%clk 00:00:44]} {[%emt 00:05:40]} 26.
Rdh1 {[%clk 00:20:58]} {[%emt 00:02:01]} Rxc2+ {[%clk 00:00:31]} 27. Kxc2
{[%clk 00:21:03]} 1-0

[Event "6. Internationales Spandauer Weihnachtsopen 2023"]
[Site "Spandau, Germany"]
[Date "2023.12.27"]
[Round "2.2"]
[White "Sprenger de la Iglesia, Yevgeni"]
[Black "Tschernatsch, Johannes"]
[Result "0-1"]
[TimeControl "90 min+30 sec"]
[WhiteElo "1958"]
[BlackElo "2335"]

1. d4 {[%clk 01:30:58]} Nf6 {[%clk 01:30:56]} 2. c4 {[%clk 01:31:22]} g6 {[%clk
01:31:22]} 3. Nc3 {[%clk 01:31:47]} d5 {[%clk 01:31:48]} 4. Nf3 {[%clk
01:32:11]} Bg7 {[%clk 01:32:12]} 5. Qb3 {[%clk 01:32:36]} dxc4 {[%clk
01:32:36]} 6. Qxc4 {[%clk 01:33:04]} O-O {[%clk 01:32:54]} 7. e4 {[%clk
01:33:30]} Nc6 {[%clk 01:33:20]} 8. Be2 {[%clk 01:33:56]} e5 {[%clk 01:33:43]}
9. d5 {[%clk 01:34:20]} Nd4 {[%clk 01:34:06]} 10. Nxd4 {[%clk 01:34:48]} exd4
{[%clk 01:34:29]} 11. Qxd4 {[%clk 01:35:14]} c6 {[%clk 01:34:54]} 12. Qc4
{[%clk 01:35:39]} b5 {[%clk 01:35:18]} 13. Qxc6 {[%clk 01:36:07]} Bd7 {[%clk
01:35:43]} 14. Qd6 {[%clk 01:36:22]} Re8 {[%clk 01:35:42]} 15. e5 {[%clk
01:31:58]} b4 {[%clk 01:36:02]} 16. Qxb4 {[%clk 01:31:20]} Rxe5 {[%clk
01:36:26]} 17. O-O {[%clk 01:14:59]} {[%emt 00:11:24]} a5 {[%clk 01:36:51]} 18.
Qc4 {[%clk 01:06:19]} {[%emt 00:09:02]} Rc8 {[%clk 01:34:13]} {[%emt 00:03:10]}
19. Qd4 {[%clk 01:00:29]} {[%emt 00:07:12]} Nxd5 {[%clk 01:32:28]} {[%emt
00:00:57]} 20. Nxd5 {[%clk 01:00:46]} {[%emt 00:00:51]} Rxe2 {[%clk 01:32:30]}
21. Qd3 {[%clk 00:57:37]} {[%emt 00:03:37]} Qe8 {[%clk 01:11:57]} {[%emt
00:21:54]} 22. Qf3 {[%clk 00:43:35]} {[%emt 00:14:52]} Re6 {[%clk 01:03:41]}
{[%emt 00:07:55]} 23. Bf4 {[%clk 00:32:06]} {[%emt 00:11:29]} Bc6 {[%clk
01:02:49]} {[%emt 00:01:38]} 24. Rad1 {[%clk 00:31:38]} {[%emt 00:00:48]} Rd8
{[%clk 00:53:57]} {[%emt 00:09:37]} 25. Rd2 {[%clk 00:28:58]} {[%emt 00:03:08]}
Rxd5 {[%clk 00:50:30]} {[%emt 00:04:20]} 26. Rxd5 {[%clk 00:28:55]} {[%emt
00:00:42]} Qa8 {[%clk 00:50:32]} {[%emt 00:00:48]} 27. Rxa5 {[%clk 00:24:30]}
{[%emt 00:04:19]} Qxa5 {[%clk 00:50:24]} {[%emt 00:00:07]} 28. Qb3 {[%clk
00:24:25]} {[%emt 00:01:06]} Bb5 {[%clk 00:48:59]} {[%emt 00:02:04]} 29. Bc7
{[%clk 00:18:14]} {[%emt 00:06:06]} Re1 {[%clk 00:48:18]} {[%emt 00:01:41]} 30.
Bxa5 {[%clk 00:17:03]} {[%emt 00:01:44]} Rxf1# {[%clk 00:48:43]} 0-1

[Event "6. Internationales Spandauer Weihnachtsopen 2023"]
[Site "Spandau, Germany"]
[Date "2023.12.27"]
[Round "2.3"]
[White "Goluch, Piotr"]
[Black "Bandlow, Matthias"]
[Result "1-0"]
[TimeControl "90 min+30 sec"]
[WhiteElo "2312"]
[BlackElo "1961"]

1. e4 {[%emt 00:00:34]} c5 {[%clk 01:30:54]} 2. Nf3 {[%clk 01:31:09]} d6 {[%clk
01:31:19]} 3. d4 {[%clk 01:31:34]} cxd4 {[%clk 01:31:44]} 4. Nxd4 {[%clk
01:32:00]} Nf6 {[%clk 01:32:09]} {[%emt 00:00:43]} 5. Nc3 {[%clk 01:32:26]} Nc6
{[%clk 01:32:18]} 6. Bg5 {[%clk 01:32:45]} e6 {[%clk 01:31:53]} {[%emt
00:00:41]} 7. Qd2 {[%clk 01:32:15]} {[%emt 00:00:54]} Be7 {[%clk 01:31:27]}
{[%emt 00:01:28]} 8. O-O-O {[%clk 01:32:07]} O-O {[%clk 01:31:39]} {[%emt
00:00:13]} 9. f3 {[%clk 01:28:55]} {[%emt 00:03:37]} a6 {[%clk 01:30:32]}
{[%emt 00:01:50]} 10. h4 {[%clk 01:27:15]} {[%emt 00:04:24]} Qc7 {[%clk
01:28:45]} 11. g4 {[%clk 01:24:16]} {[%emt 00:03:39]} Rd8 {[%clk 01:22:57]}
{[%emt 00:06:42]} 12. h5 {[%clk 01:18:38]} {[%emt 00:05:24]} d5 {[%clk
01:20:13]} {[%emt 00:03:29]} 13. Nxc6 {[%clk 01:16:42]} {[%emt 00:08:33]} bxc6
{[%clk 01:19:20]} 14. e5 {[%clk 01:17:08]} d4 {[%clk 01:13:29]} {[%emt
00:01:22]} 15. Bxf6 {[%clk 01:16:24]} {[%emt 00:01:41]} gxf6 {[%clk 01:08:56]}
{[%emt 00:04:44]} 16. Ne4 {[%clk 01:16:42]} {[%emt 00:00:06]} Qxe5 {[%clk
01:07:41]} {[%emt 00:01:44]} 17. Qh6 {[%clk 01:08:51]} {[%emt 00:09:01]} d3
{[%clk 00:47:15]} {[%emt 00:22:02]} 18. Bxd3 {[%clk 01:08:42]} Rxd3 {[%clk
00:47:05]} 19. Rxd3 {[%clk 01:06:05]} {[%emt 00:03:11]} Rb8 {[%clk 00:47:18]}
{[%emt 00:00:31]} 20. c3 {[%clk 01:06:07]} Qb5 {[%clk 00:46:30]} {[%emt
00:01:01]} 21. Rd2 {[%clk 01:03:36]} {[%emt 00:05:36]} e5 {[%clk 00:41:33]}
{[%emt 00:03:20]} 22. Nxf6+ {[%clk 01:03:20]} {[%emt 00:00:54]} Bxf6 {[%clk
00:41:59]} 23. Qxf6 {[%clk 01:03:46]} Be6 {[%clk 00:42:09]} 24. h6 {[%emt
00:00:16]} 1-0

[Event "6. Internationales Spandauer Weihnachtsopen 2023"]
[Site "Spandau, Germany"]
[Date "2023.12.27"]
[Round "2.4"]
[White "Förster, Jonas"]
[Black "Kutschke, Jens"]
[Result "1-0"]
[TimeControl "90 min+30 sec"]
[WhiteElo "2275"]
[BlackElo "1938"]

1. d4 {[%clk 01:30:55]} {[%emt 00:00:04]} Nf6 {[%clk 01:30:48]} {[%emt
00:00:08]} 2. Nf3 {[%clk 01:31:05]} {[%emt 00:00:24]} g6 {[%clk 01:31:00]}
{[%emt 00:00:41]} 3. g3 {[%clk 01:30:25]} {[%emt 00:01:08]} Bg7 {[%clk
01:31:09]} 4. Bg2 {[%clk 01:30:18]} {[%emt 00:00:36]} O-O {[%clk 01:31:32]}
{[%emt 00:00:05]} 5. O-O {[%clk 01:30:40]} {[%emt 00:00:14]} d5 {[%clk
01:31:41]} {[%emt 00:00:38]} 6. Nbd2 {[%clk 01:29:28]} {[%emt 00:01:16]} b6
{[%clk 01:29:47]} {[%emt 00:02:25]} 7. c4 {[%clk 01:27:45]} {[%emt 00:02:28]}
c6 {[%clk 01:28:55]} {[%emt 00:01:24]} 8. b3 {[%clk 01:25:18]} {[%emt
00:16:22]} Nbd7 {[%clk 01:28:58]} 9. Qc2 {[%clk 01:12:09]} {[%emt 00:00:34]}
Bb7 {[%clk 01:28:15]} {[%emt 00:06:10]} 10. e4 {[%clk 01:09:17]} dxe4 {[%clk
01:27:07]} 11. Nxe4 {[%clk 01:09:45]} {[%emt 00:12:30]} c5 {[%clk 01:27:31]} 12.
Nxf6+ {[%clk 01:09:39]} Bxf6 {[%clk 01:27:44]} 13. Bh6 {[%clk 00:59:55]} Re8
{[%clk 01:27:33]} 14. Rad1 {[%clk 00:46:16]} {[%emt 00:18:03]} cxd4 {[%clk
01:27:30]} 15. Nxd4 {[%clk 00:46:22]} Bxg2 {[%clk 01:27:54]} 16. Kxg2 {[%clk
00:46:40]} Qc7 {[%clk 01:25:59]} 17. Qe4 {[%clk 00:43:37]} {[%emt 00:05:00]}
Nc5 {[%clk 01:16:38]} {[%emt 00:10:07]} 18. Qf3 {[%clk 00:41:56]} Rad8 {[%clk
01:16:32]} {[%emt 00:00:25]} 19. Nb5 {[%clk 00:39:54]} {[%emt 00:04:24]} Qc8
{[%clk 01:12:40]} {[%emt 00:02:30]} 20. Nd6 {[%clk 00:32:17]} {[%emt 00:07:50]}
Rxd6 {[%clk 01:04:57]} {[%emt 00:08:13]} 21. Rxd6 {[%clk 00:32:43]} {[%emt
00:00:38]} Bg7 {[%clk 01:05:17]} 22. Rc6 {[%clk 00:28:49]} {[%emt 00:08:00]}
Qb7 {[%clk 01:04:21]} 23. Bxg7 {[%clk 00:29:09]} Kxg7 {[%clk 01:04:42]} 24. Rd1
{[%clk 00:25:13]} {[%emt 00:02:17]} f5 {[%clk 01:00:03]} {[%emt 00:06:08]} 25.
Rxc5 {[%clk 00:20:29]} {[%emt 00:04:11]} Qxf3+ {[%clk 01:00:23]} {[%emt
00:00:47]} 26. Kxf3 {[%clk 00:20:56]} bxc5 {[%clk 01:00:48]} 27. Rd7 {[%clk
00:21:08]} Kf6 {[%clk 01:00:09]} {[%emt 00:03:55]} 28. Rxa7 {[%clk 00:20:30]}
Rc8 {[%clk 01:00:04]} 29. Ra6+ {[%clk 00:18:54]} {[%emt 00:02:28]} e6 {[%clk
01:00:29]} 30. h4 {[%clk 00:17:23]} {[%emt 00:01:41]} h6 {[%clk 01:00:52]} 31.
Rb6 {[%clk 00:16:45]} {[%emt 00:00:17]} g5 {[%clk 01:01:10]} {[%emt 00:02:08]}
32. hxg5+ {[%clk 00:17:11]} hxg5 {[%clk 01:01:35]} 33. a4 {[%clk 00:17:26]} Ke5
{[%clk 01:02:00]} 34. a5 {[%clk 00:16:16]} {[%emt 00:00:19]} f4 {[%clk
01:01:26]} {[%emt 00:00:43]} 35. Kg4 {[%clk 00:11:06]} {[%emt 00:05:43]} fxg3
{[%clk 01:01:39]} {[%emt 00:00:25]} 36. Kxg3 {[%clk 00:10:46]} {[%emt
00:01:05]} Kf5 {[%clk 01:01:04]} {[%emt 00:00:39]} 37. a6 {[%clk 00:11:01]}
{[%emt 00:01:36]} e5 {[%clk 01:01:21]} 38. Kf3 {[%clk 00:10:49]} Ra8 {[%clk
01:01:00]} {[%emt 00:00:26]} 39. Ke3 {[%clk 00:09:55]} {[%emt 00:01:46]} g4
{[%clk 01:01:03]} {[%emt 00:00:05]} 40. Kd3 {[%clk 00:09:22]} {[%emt 00:01:15]}
Rd8+ {[%clk 01:00:58]} {[%emt 00:00:52]} 41. Kc3 {[%clk 00:09:24]} Ke4 {[%clk
01:01:22]} {[%emt 00:00:53]} 42. a7 {[%clk 00:09:17]} Ra8 {[%clk 01:01:41]}
{[%emt 00:00:21]} 43. Rb7 {[%clk 00:09:33]} Kf3 {[%clk 01:01:55]} {[%emt
00:00:21]} 44. Rf7 {[%clk 00:09:53]} {[%emt 00:02:09]} Ke2 {[%clk 01:02:20]} 45.
b4 {[%clk 00:09:59]} cxb4+ {[%clk 01:02:40]} 46. Kxb4 {[%clk 00:10:25]} e4
{[%clk 01:03:06]} 47. c5 {[%clk 00:09:32]} {[%emt 00:00:06]} e3 {[%clk
01:03:29]} {[%emt 00:00:36]} 48. fxe3 {[%clk 00:09:49]} Kxe3 {[%clk 01:03:53]}
49. Rg7 {[%clk 00:09:55]} {[%emt 00:00:27]} Kf3 {[%clk 01:03:59]} {[%emt
00:01:13]} 50. Kb5 {[%clk 00:10:16]} g3 {[%clk 01:04:22]} 51. Kb6 {[%clk
00:10:33]} 1-0

[Event "6. Internationales Spandauer Weihnachtsopen 2023"]
[Site "Spandau, Germany"]
[Date "2023.12.27"]
[Round "2.5"]
[White "Leipert, Pieter"]
[Black "Richter, Leonard"]
[Result "1/2-1/2"]
[TimeControl "90 min+30 sec"]
[WhiteElo "1942"]
[BlackElo "2253"]

1. d4 {[%clk 01:30:57]} Nf6 {[%clk 01:30:55]} 2. Bf4 {[%clk 01:31:19]} g6
{[%clk 01:31:04]} {[%emt 00:00:36]} 3. Nc3 {[%clk 01:31:28]} {[%emt 00:09:45]}
d5 {[%clk 01:21:21]} 4. e3 {[%clk 01:31:39]} Bg7 {[%clk 01:20:09]} {[%emt
00:01:11]} 5. Nb5 {[%clk 01:31:48]} {[%emt 00:00:10]} Na6 {[%clk 01:20:23]}
{[%emt 00:00:42]} 6. Nc3 {[%clk 01:32:12]} Nb8 {[%clk 01:15:29]} {[%emt
00:04:59]} 7. Nb5 {[%clk 01:32:34]} {[%emt 00:00:23]} Na6 {[%clk 01:15:33]}
{[%emt 00:00:12]} 8. Nc3 {[%clk 01:32:58]} {[%emt 00:00:05]} O-O {[%clk
01:14:25]} {[%emt 00:01:45]} 9. Bxa6 {[%clk 01:33:23]} bxa6 {[%clk 01:14:52]}
{[%emt 00:00:42]} 10. Be5 {[%clk 01:33:48]} Re8 {[%clk 01:10:44]} {[%emt
00:04:15]} 11. Nge2 {[%clk 01:33:28]} {[%emt 00:00:42]} Bf8 {[%clk 01:06:49]}
{[%emt 00:04:24]} 12. Bxf6 {[%clk 01:32:53]} {[%emt 00:01:01]} exf6 {[%clk
01:07:14]} {[%emt 00:00:24]} 13. Nf4 {[%clk 01:33:16]} c6 {[%clk 01:00:43]}
{[%emt 00:08:33]} 14. Qd2 {[%clk 01:23:38]} {[%emt 00:09:57]} Rb8 {[%clk
00:55:55]} {[%emt 00:03:44]} 15. Nd3 {[%clk 01:22:03]} {[%emt 00:02:13]} Bf5
{[%clk 00:52:28]} {[%emt 00:03:57]} 16. b3 {[%clk 01:18:00]} {[%emt 00:06:12]}
Bd6 {[%clk 00:40:21]} {[%emt 00:11:06]} 17. Na4 {[%clk 01:12:05]} {[%emt
00:06:14]} Be4 {[%clk 00:37:28]} {[%emt 00:04:39]} 18. O-O {[%clk 01:06:28]}
{[%emt 00:04:52]} Qc8 {[%clk 00:31:48]} {[%emt 00:06:08]} 19. f3 {[%clk
01:03:35]} {[%emt 00:03:22]} Bxd3 {[%clk 00:29:18]} {[%emt 00:03:01]} 20. Qxd3
{[%clk 01:03:58]} {[%emt 00:00:19]} Qc7 {[%clk 00:23:25]} {[%emt 00:06:08]} 21.
g3 {[%clk 01:00:21]} {[%emt 00:04:11]} Bxg3 {[%clk 00:12:40]} {[%emt 00:17:21]}
22. hxg3 {[%clk 01:00:12]} Qxg3+ {[%clk 00:13:05]} 23. Kh1 {[%clk 01:00:38]}
Rb4 24. Qd2 Re5 25. Qh2 Rh5 1/2-1/2

[Event "6. Internationales Spandauer Weihnachtsopen 2023"]
[Site "Spandau, Germany"]
[Date "2023.12.27"]
[Round "2.6"]
[White "Tiarks, Jann-Christian"]
[Black "Zobel, Christian"]
[Result "1-0"]
[TimeControl "90 min+30 sec"]
[WhiteElo "2224"]
[BlackElo "1932"]

1. e4 {[%clk 01:30:56]} c5 {[%clk 01:30:43]} {[%emt 00:00:21]} 2. Nf3 {[%clk
01:31:09]} {[%emt 00:00:20]} e6 {[%clk 01:31:04]} 3. d4 {[%clk 01:31:31]}
{[%emt 00:00:14]} cxd4 {[%clk 01:31:27]} 4. Nxd4 {[%clk 01:31:56]} {[%emt
00:00:24]} a6 {[%clk 01:31:51]} 5. Bd3 {[%clk 01:31:47]} {[%emt 00:00:26]} Nf6
{[%clk 01:31:29]} {[%emt 00:01:13]} 6. O-O {[%clk 01:31:39]} {[%emt 00:00:18]}
Qc7 {[%clk 01:30:57]} {[%emt 00:01:09]} 7. Qe2 {[%clk 01:25:02]} {[%emt
00:07:02]} d6 {[%clk 01:30:15]} {[%emt 00:01:11]} 8. c4 {[%clk 01:24:54]}
{[%emt 00:00:48]} Be7 {[%clk 01:27:28]} {[%emt 00:04:24]} 9. Nc3 {[%clk
01:19:53]} {[%emt 00:05:13]} Nc6 {[%clk 01:23:20]} {[%emt 00:03:39]} 10. Nxc6
{[%clk 01:15:57]} {[%emt 00:04:23]} bxc6 {[%clk 01:23:17]} {[%emt 00:00:35]} 11.
Be3 {[%clk 01:11:09]} {[%emt 00:05:15]} Bb7 {[%clk 01:18:47]} {[%emt 01:09:31]}
12. f4 {[%clk 01:06:55]} O-O {[%clk 01:12:49]} 13. c5 {[%clk 00:58:38]} dxc5
{[%clk 01:06:34]} 14. Na4 {[%clk 00:50:56]} c4 {[%clk 00:53:54]} {[%emt
00:00:15]} 15. Bxc4 {[%clk 00:50:08]} c5 {[%clk 00:52:23]} 16. e5 {[%clk
00:49:20]} Nd5 {[%clk 00:44:59]} 17. Bd2 {[%clk 00:49:00]} Qc6 {[%clk
00:39:10]} {[%emt 00:03:00]} 18. Nc3 {[%clk 00:46:59]} {[%emt 00:02:35]} f5
{[%clk 00:37:24]} {[%emt 00:02:12]} 19. exf6 {[%clk 00:41:24]} {[%emt
00:06:05]} Bxf6 {[%clk 00:33:17]} {[%emt 00:04:40]} 20. f5 {[%clk 00:38:59]}
{[%emt 00:02:53]} Rae8 {[%clk 00:21:53]} {[%emt 00:12:01]} 21. fxe6 {[%clk
00:34:40]} {[%emt 00:04:51]} Rxe6 {[%clk 00:20:57]} {[%emt 00:01:16]} 22. Qg4
{[%clk 00:31:13]} {[%emt 00:03:57]} Qd7 {[%clk 00:10:34]} {[%emt 00:10:53]} 23.
Bg5 {[%clk 00:26:01]} {[%emt 00:05:57]} Bd4+ {[%clk 00:07:30]} {[%emt
00:03:19]} 24. Kh1 {[%clk 00:26:05]} {[%emt 00:00:37]} Rd6 {[%clk 00:07:04]}
{[%emt 00:00:51]} 25. Rxf8+ {[%clk 00:25:45]} {[%emt 00:00:53]} Kxf8 {[%clk
00:07:32]} 26. Rf1+ {[%clk 00:25:49]} {[%emt 00:00:28]} Nf6 {[%clk 00:07:51]}
{[%emt 00:00:05]} 27. Qg3 {[%clk 00:21:34]} {[%emt 00:04:47]} Bxc3 {[%clk
00:03:05]} {[%emt 00:05:11]} 28. bxc3 {[%clk 00:20:41]} {[%emt 00:01:26]} Rd1
{[%clk 00:02:42]} {[%emt 00:00:50]} 29. Qb8+ {[%clk 00:20:07]} {[%emt
00:01:54]} Bc8 {[%clk 00:03:09]} 30. Qe5 {[%clk 00:18:28]} {[%emt 00:01:21]}
Rxf1+ {[%clk 00:03:06]} {[%emt 00:00:45]} 31. Bxf1 {[%clk 00:18:51]} Qc6 {[%clk
00:03:20]} {[%emt 00:00:14]} 32. Be3 {[%clk 00:17:14]} {[%emt 00:02:05]} Nd7
{[%clk 00:02:43]} {[%emt 00:01:09]} 33. Qf5+ {[%clk 00:16:18]} {[%emt
00:01:33]} Kg8 {[%clk 00:03:02]} {[%emt 00:00:05]} 34. Bc4+ {[%clk 00:16:19]}
{[%emt 00:00:38]} Kh8 {[%clk 00:03:28]} 35. Qf7 {[%clk 00:16:33]} {[%emt
00:00:08]} 1-0